[Event "Titled Tuesday Blitz April 18 Late 2023"]
[White "Hirneise, Jens"]
[Black "De Souza, Cristiano Gomes"]
[WhiteFideId "24614734"]
[BlackFideId "2151758"]
[WhiteElo "2345"]
[BlackElo "2068"]
[Result "1-0"]
[Round "06"]
[TimeControl "180+2"]
[Date "2023.04.18"]
[WhiteClock "0:00:35"]
[BlackClock "0:00:57"]

1. Nf3 {[%clk 0:03:00]}  Nf6 {[%clk 0:02:59]} 2. c4 {[%clk 0:03:00]}  g6 {[%clk 0:02:59]} 3. Nc3 {[%clk 0:03:00]}  Bg7 {[%clk 0:03:00]} 4. e4 {[%clk 0:02:59]}  d6 {[%clk 0:03:01]} 5. d4 {[%clk 0:02:59]}  O-O {[%clk 0:03:01]} 6. Be2 {[%clk 0:02:56]}  e5 {[%clk 0:03:01]} 7. O-O {[%clk 0:02:56]}  Nc6 {[%clk 0:03:00]} 8. dxe5 {[%clk 0:02:55]}  Nxe5 {[%clk 0:03:00]} 9. Nxe5 {[%clk 0:02:54]}  dxe5 {[%clk 0:03:01]} 10. Bg5 {[%clk 0:02:55]}  c6 {[%clk 0:02:57]} 11. Qc1 {[%clk 0:02:44]}  Be6 {[%clk 0:02:55]} 12. Rd1 {[%clk 0:02:43]}  Qc7 {[%clk 0:02:51]} 13. Bh6 {[%clk 0:02:42]}  Rad8 {[%clk 0:02:50]} 14. Bxg7 {[%clk 0:02:41]}  Kxg7 {[%clk 0:02:51]} 15. Qe3 {[%clk 0:02:37]}  b6 {[%clk 0:02:49]} 16. h3 {[%clk 0:02:29]}  Rxd1+ {[%clk 0:02:40]} 17. Rxd1 {[%clk 0:02:30]}  Rd8 {[%clk 0:02:41]} 18. a4 {[%clk 0:02:20]}  Rxd1+ {[%clk 0:02:36]} 19. Nxd1 {[%clk 0:02:21]}  Qd6 {[%clk 0:02:36]} 20. Nc3 {[%clk 0:02:08]}  Qb4 {[%clk 0:02:22]} 21. Qg5 {[%clk 0:02:04]}  Qxb2 {[%clk 0:02:04]} 22. Qxe5 {[%clk 0:02:02]}  Qb4 {[%clk 0:01:49]} 23. g4 {[%clk 0:01:59]}  h6 {[%clk 0:01:46]} 24. h4 {[%clk 0:01:56]}  Bxc4 {[%clk 0:01:22]} 25. Bxc4 {[%clk 0:01:54]}  Qxc4 {[%clk 0:01:22]} 26. g5 {[%clk 0:01:54]}  hxg5 {[%clk 0:01:17]} 27. hxg5 {[%clk 0:01:54]}  Qe6 {[%clk 0:01:14]} 28. gxf6+ {[%clk 0:01:31]}  Qxf6 {[%clk 0:01:14]} 29. f4 {[%clk 0:01:27]}  Qxe5 {[%clk 0:01:10]} 30. fxe5 {[%clk 0:01:28]}  a6 {[%clk 0:01:07]} 31. Kf2 {[%clk 0:01:27]}  b5 {[%clk 0:01:08]} 32. Ke3 {[%clk 0:01:21]}  bxa4 {[%clk 0:01:06]} 33. Nxa4 {[%clk 0:01:21]}  Kf8 {[%clk 0:01:07]} 34. Nc5 {[%clk 0:01:17]}  a5 {[%clk 0:01:06]} 35. Kd4 {[%clk 0:01:03]}  Ke7 {[%clk 0:01:07]} 36. Kc4 {[%clk 0:01:00]}  g5 {[%clk 0:01:06]} 37. Kd4 {[%clk 0:00:58]}  g4 {[%clk 0:01:05]} 38. Ke3 {[%clk 0:00:58]}  f6 {[%clk 0:00:57]} 39. exf6+ {[%clk 0:00:40]}  Kxf6 {[%clk 0:00:57]} 40. Kf4 {[%clk 0:00:40]}  g3 {[%clk 0:00:54]} 41. e5+ {[%clk 0:00:38]}  Ke7 {[%clk 0:00:54]} 42. Kxg3 {[%clk 0:00:37]}  a4 {[%clk 0:00:55]} 43. Nxa4 {[%clk 0:00:35]}  Ke6 {[%clk 0:00:56]} 44. Kf4 {[%clk 0:00:35]}  Kd5 {[%clk 0:00:56]} 45. Kf5 {[%clk 0:00:35]}  c5 {[%clk 0:00:56]} 46. e6 {[%clk 0:00:35]}  Kd6 {[%clk 0:00:56]} 47. Kf6 {[%clk 0:00:36]}  c4 {[%clk 0:00:57]} 48. e7 {[%clk 0:00:35]} 1-0


[Site "https://www.chess.com"]

[Event "Titled Tuesday Blitz April 18 Late 2023"]
[White "Bilan, Danila"]
[Black "Simonovic, Miroslav"]
[WhiteFideId "24161918"]
[BlackFideId "919152"]
[WhiteElo "2182"]
[BlackElo "2042"]
[Result "1-0"]
[Round "06"]
[TimeControl "180+2"]
[Date "2023.04.18"]
[WhiteClock "0:01:03"]
[BlackClock "0:00:25"]

1. d4 {[%clk 0:03:00]}  Nf6 {[%clk 0:02:59]} 2. Nf3 {[%clk 0:03:00]}  c5 {[%clk 0:03:00]} 3. e3 {[%clk 0:02:58]}  b6 {[%clk 0:03:00]} 4. c4 {[%clk 0:02:58]}  Bb7 {[%clk 0:03:00]} 5. Nc3 {[%clk 0:02:58]}  g6 {[%clk 0:02:58]} 6. d5 {[%clk 0:02:58]}  d6 {[%clk 0:02:57]} 7. e4 {[%clk 0:02:56]}  Nbd7 {[%clk 0:02:56]} 8. Bd3 {[%clk 0:02:46]}  Bg7 {[%clk 0:02:56]} 9. Bg5 {[%clk 0:02:40]}  h6 {[%clk 0:02:55]} 10. Bh4 {[%clk 0:02:40]}  O-O {[%clk 0:02:54]} 11. O-O {[%clk 0:02:39]}  e5 {[%clk 0:02:51]} 12. dxe6 {[%clk 0:02:35]}  fxe6 {[%clk 0:02:49]} 13. e5 {[%clk 0:02:34]}  Bxf3 {[%clk 0:02:42]} 14. Qxf3 {[%clk 0:02:15]}  Nxe5 {[%clk 0:02:42]} 15. Qh3 {[%clk 0:02:11]}  Nxd3 {[%clk 0:02:33]} 16. Qxd3 {[%clk 0:02:12]}  g5 {[%clk 0:02:24]} 17. Bg3 {[%clk 0:02:11]}  e5 {[%clk 0:02:23]} 18. Rad1 {[%clk 0:02:04]}  Ne8 {[%clk 0:02:06]} 19. Rd2 {[%clk 0:01:41]}  Qe7 {[%clk 0:02:00]} 20. Qd5+ {[%clk 0:01:40]}  Kh8 {[%clk 0:01:48]} 21. Qxa8 {[%clk 0:01:39]}  Nf6 {[%clk 0:01:49]} 22. Qc6 {[%clk 0:01:31]}  h5 {[%clk 0:01:11]} 23. Qxd6 {[%clk 0:01:12]}  Qf7 {[%clk 0:00:37]} 24. Bxe5 {[%clk 0:01:06]}  Ne8 {[%clk 0:00:25]} 25. Qh6+ {[%clk 0:01:04]}  Kg8 {[%clk 0:00:25]} 26. Qxg5 {[%clk 0:01:03]} 1-0


[Site "https://www.chess.com"]

[Event "Titled Tuesday Blitz April 18 Late 2023"]
[White "Santos Flores, Alberto"]
[Black "Torres Hernandez, Leslie Carolin"]
[WhiteFideId "3601234"]
[BlackFideId "8400504"]
[WhiteElo "2235"]
[BlackElo "1920"]
[Result "1-0"]
[Round "06"]
[TimeControl "180+2"]
[Date "2023.04.18"]
[WhiteClock "0:00:59"]
[BlackClock "0:00:28"]

1. d4 {[%clk 0:03:00]}  Nf6 {[%clk 0:02:54]} 2. Bf4 {[%clk 0:03:00]}  d5 {[%clk 0:02:50]} 3. Nc3 {[%clk 0:02:59]}  c6 {[%clk 0:02:43]} 4. e3 {[%clk 0:02:53]}  g6 {[%clk 0:02:39]} 5. Bd3 {[%clk 0:02:51]}  Bg7 {[%clk 0:02:39]} 6. h3 {[%clk 0:02:50]}  O-O {[%clk 0:02:38]} 7. Nf3 {[%clk 0:02:50]}  c5 {[%clk 0:02:38]} 8. dxc5 {[%clk 0:02:47]}  Nbd7 {[%clk 0:02:38]} 9. e4 {[%clk 0:02:43]}  Nxc5 {[%clk 0:02:36]} 10. exd5 {[%clk 0:02:40]}  Nxd5 {[%clk 0:02:34]} 11. Nxd5 {[%clk 0:02:39]}  Qxd5 {[%clk 0:02:32]} 12. O-O {[%clk 0:02:39]}  Nxd3 {[%clk 0:02:25]} 13. Qxd3 {[%clk 0:02:35]}  Qxd3 {[%clk 0:02:25]} 14. cxd3 {[%clk 0:02:35]}  Bf5 {[%clk 0:02:25]} 15. Ne5 {[%clk 0:02:32]}  f6 {[%clk 0:02:17]} 16. Nf3 {[%clk 0:02:22]}  Bxd3 {[%clk 0:02:17]} 17. Rfd1 {[%clk 0:02:22]}  Bb5 {[%clk 0:02:13]} 18. Nd4 {[%clk 0:02:19]}  Bc4 {[%clk 0:02:11]} 19. Rac1 {[%clk 0:02:15]}  Bxa2 {[%clk 0:02:11]} 20. Be3 {[%clk 0:02:08]}  e5 {[%clk 0:02:11]} 21. Nb5 {[%clk 0:02:08]}  a6 {[%clk 0:02:08]} 22. Nd6 {[%clk 0:02:07]}  b5 {[%clk 0:02:01]} 23. Rc7 {[%clk 0:02:00]}  Rfd8 {[%clk 0:01:54]} 24. Bc5 {[%clk 0:01:57]}  Be6 {[%clk 0:01:48]} 25. Ra1 {[%clk 0:01:48]}  Bf8 {[%clk 0:01:34]} 26. Ne4 {[%clk 0:01:48]}  Bg7 {[%clk 0:01:02]} 27. Be7 {[%clk 0:01:43]}  Rd7 {[%clk 0:01:02]} 28. Rxd7 {[%clk 0:01:40]}  Bxd7 {[%clk 0:01:02]} 29. Nxf6+ {[%clk 0:01:37]}  Kf7 {[%clk 0:00:59]} 30. Nxd7 {[%clk 0:01:35]}  Kxe7 {[%clk 0:00:59]} 31. Nc5 {[%clk 0:01:36]}  a5 {[%clk 0:00:58]} 32. Ne4 {[%clk 0:01:33]}  h6 {[%clk 0:00:54]} 33. Rc1 {[%clk 0:01:31]}  Ra7 {[%clk 0:00:53]} 34. Kf1 {[%clk 0:01:28]}  b4 {[%clk 0:00:50]} 35. b3 {[%clk 0:01:27]}  Kd7 {[%clk 0:00:47]} 36. Ke2 {[%clk 0:01:11]}  Ke6 {[%clk 0:00:40]} 37. g3 {[%clk 0:01:09]}  Kf5 {[%clk 0:00:35]} 38. Ke3 {[%clk 0:01:01]}  a4 {[%clk 0:00:31]} 39. bxa4 {[%clk 0:01:01]}  Rxa4 {[%clk 0:00:31]} 40. g4+ {[%clk 0:01:01]}  Ke6 {[%clk 0:00:28]} 41. Nc5+ {[%clk 0:01:02]}  Kd5 {[%clk 0:00:29]} 42. Nxa4 {[%clk 0:01:03]}  h5 {[%clk 0:00:28]} 43. Rb1 {[%clk 0:00:59]} 1-0


[Site "https://www.chess.com"]

[Event "Titled Tuesday Blitz April 18 Late 2023"]
[White "KorolDimitriy75"]
[Black "Dahlgren, James Allen"]
[BlackFideId "22256873"]
[WhiteElo "2369"]
[BlackElo "2178"]
[Result "1/2-1/2"]
[Round "06"]
[TimeControl "180+2"]
[Date "2023.04.18"]
[WhiteClock "0:01:50"]
[BlackClock "0:01:26"]

1. d4 {[%clk 0:03:00]}  e6 {[%clk 0:02:59]} 2. c4 {[%clk 0:03:00]}  c5 {[%clk 0:03:00]} 3. d5 {[%clk 0:03:00]}  exd5 {[%clk 0:02:58]} 4. cxd5 {[%clk 0:03:00]}  d6 {[%clk 0:02:59]} 5. Nc3 {[%clk 0:03:01]}  f5 {[%clk 0:02:59]} 6. Nf3 {[%clk 0:02:59]}  Nf6 {[%clk 0:02:59]} 7. Nd2 {[%clk 0:02:57]}  g6 {[%clk 0:02:57]} 8. Nc4 {[%clk 0:02:57]}  a6 {[%clk 0:02:55]} 9. a4 {[%clk 0:02:56]}  Nbd7 {[%clk 0:02:40]} 10. Bf4 {[%clk 0:02:46]}  Nb6 {[%clk 0:02:39]} 11. Na3 {[%clk 0:02:42]}  a5 {[%clk 0:02:22]} 12. e3 {[%clk 0:02:35]}  Nh5 {[%clk 0:02:17]} 13. Bb5+ {[%clk 0:02:29]}  Bd7 {[%clk 0:02:12]} 14. O-O {[%clk 0:02:18]}  Nxf4 {[%clk 0:01:55]} 15. exf4 {[%clk 0:02:19]}  Bg7 {[%clk 0:01:54]} 16. Re1+ {[%clk 0:02:12]}  Kf7 {[%clk 0:01:54]} 17. Bxd7 {[%clk 0:02:04]}  Qxd7 {[%clk 0:01:47]} 18. Re6 {[%clk 0:02:04]}  Nxd5 {[%clk 0:01:32]} 19. Qxd5 {[%clk 0:01:53]}  Qxe6 {[%clk 0:01:32]} 20. Qxb7+ {[%clk 0:01:52]}  Qe7 {[%clk 0:01:27]} 21. Qd5+ {[%clk 0:01:51]}  Qe6 {[%clk 0:01:25]} 22. Qb7+ {[%clk 0:01:51]}  Qe7 {[%clk 0:01:26]} 23. Qd5+ {[%clk 0:01:50]}  Qe6 {[%clk 0:01:26]} 24. Qb7+ {[%clk 0:01:50]} 1/2-1/2


[Site "https://www.chess.com"]

[Event "Titled Tuesday Blitz April 18 Late 2023"]
[White "merinasian"]
[Black "Tarnowska, Aleksandra"]
[BlackFideId "1180967"]
[WhiteElo "2339"]
[BlackElo "1776"]
[Result "1-0"]
[Round "06"]
[TimeControl "180+2"]
[Date "2023.04.18"]
[WhiteClock "0:00:48"]
[BlackClock "0:00:02"]

1. d4 {[%clk 0:03:00]}  d5 {[%clk 0:03:00]} 2. Nf3 {[%clk 0:03:00]}  e6 {[%clk 0:03:00]} 3. c4 {[%clk 0:03:00]}  Nf6 {[%clk 0:03:01]} 4. e3 {[%clk 0:03:01]}  Be7 {[%clk 0:02:55]} 5. Nbd2 {[%clk 0:03:01]}  O-O {[%clk 0:02:55]} 6. Bd3 {[%clk 0:03:01]}  dxc4 {[%clk 0:02:53]} 7. Nxc4 {[%clk 0:03:01]}  b6 {[%clk 0:02:50]} 8. O-O {[%clk 0:03:01]}  Bb7 {[%clk 0:02:50]} 9. Nce5 {[%clk 0:03:00]}  Nbd7 {[%clk 0:02:46]} 10. Bd2 {[%clk 0:02:59]}  c5 {[%clk 0:02:45]} 11. Bc3 {[%clk 0:02:54]}  Nd5 {[%clk 0:02:36]} 12. Qc2 {[%clk 0:02:53]}  Rc8 {[%clk 0:02:30]} 13. Bxh7+ {[%clk 0:02:52]}  Kh8 {[%clk 0:02:31]} 14. Be4 {[%clk 0:02:52]}  N7f6 {[%clk 0:02:24]} 15. Bd3 {[%clk 0:02:49]}  cxd4 {[%clk 0:02:20]} 16. exd4 {[%clk 0:02:47]}  Nb4 {[%clk 0:02:12]} 17. Qe2 {[%clk 0:02:47]}  Nxd3 {[%clk 0:02:05]} 18. Nxd3 {[%clk 0:02:47]}  Qd5 {[%clk 0:02:03]} 19. Nf4 {[%clk 0:02:46]}  Qf5 {[%clk 0:02:01]} 20. Qe5 {[%clk 0:02:32]}  Qh7 {[%clk 0:01:26]} 21. Ng5 {[%clk 0:02:30]}  Qh6 {[%clk 0:01:17]} 22. Ngh3 {[%clk 0:02:04]}  Rfd8 {[%clk 0:00:50]} 23. Bd2 {[%clk 0:01:50]}  Ng4 {[%clk 0:00:41]} 24. Qe2 {[%clk 0:01:39]}  Bg5 {[%clk 0:00:15]} 25. Qxg4 {[%clk 0:01:38]}  Rxd4 {[%clk 0:00:07]} 26. Qxg5 {[%clk 0:01:37]}  Qxg5 {[%clk 0:00:07]} 27. Nxg5 {[%clk 0:01:37]}  Rxd2 {[%clk 0:00:08]} 28. Nxf7+ {[%clk 0:01:37]}  Kg8 {[%clk 0:00:08]} 29. Ne5 {[%clk 0:01:35]}  Rcc2 {[%clk 0:00:08]} 30. Rad1 {[%clk 0:01:27]}  Rxb2 {[%clk 0:00:08]} 31. Rxd2 {[%clk 0:01:24]}  Rxd2 {[%clk 0:00:09]} 32. Nxe6 {[%clk 0:01:21]}  Rxa2 {[%clk 0:00:07]} 33. Ng5 {[%clk 0:01:17]}  g6 {[%clk 0:00:07]} 34. Nxg6 {[%clk 0:01:16]}  Kg7 {[%clk 0:00:07]} 35. Ne5 {[%clk 0:01:16]}  b5 {[%clk 0:00:06]} 36. h4 {[%clk 0:01:13]}  b4 {[%clk 0:00:05]} 37. Rb1 {[%clk 0:01:12]}  a5 {[%clk 0:00:06]} 38. Ne6+ {[%clk 0:01:11]}  Kf6 {[%clk 0:00:06]} 39. Nc5 {[%clk 0:01:11]}  Bd5 {[%clk 0:00:05]} 40. Ng4+ {[%clk 0:01:09]}  Kg7 {[%clk 0:00:04]} 41. Ne3 {[%clk 0:01:10]}  Bf7 {[%clk 0:00:03]} 42. g4 {[%clk 0:01:05]}  Bg6 {[%clk 0:00:03]} 43. Rb3 {[%clk 0:01:01]}  a4 {[%clk 0:00:02]} 44. Rxb4 {[%clk 0:01:01]}  Ra1+ {[%clk 0:00:02]} 45. Kg2 {[%clk 0:01:00]}  a3 {[%clk 0:00:03]} 46. Ra4 {[%clk 0:00:57]}  a2 {[%clk 0:00:03]} 47. Nb3 {[%clk 0:00:56]}  Rb1 {[%clk 0:00:02]} 48. Ra7+ {[%clk 0:00:57]}  Kh6 {[%clk 0:00:03]} 49. Rxa2 {[%clk 0:00:57]}  Rxb3 {[%clk 0:00:02]} 50. Ra6 {[%clk 0:00:58]}  Kg7 {[%clk 0:00:03]} 51. h5 {[%clk 0:00:57]}  Be4+ {[%clk 0:00:02]} 52. Kg3 {[%clk 0:00:56]}  Rb1 {[%clk 0:00:02]} 53. Kh4 {[%clk 0:00:56]}  Rh1+ {[%clk 0:00:02]} 54. Kg5 {[%clk 0:00:56]}  Bf3 {[%clk 0:00:02]} 55. Ra7+ {[%clk 0:00:56]}  Kf8 {[%clk 0:00:03]} 56. h6 {[%clk 0:00:51]}  Rb1 {[%clk 0:00:02]} 57. Nf5 {[%clk 0:00:49]}  Rb5 {[%clk 0:00:02]} 58. h7 {[%clk 0:00:48]} 1-0


[Site "https://www.chess.com"]

[Event "Titled Tuesday Blitz April 18 Late 2023"]
[White "Sarkar, Justin"]
[Black "Govender, Kaedan"]
[WhiteFideId "2010011"]
[BlackFideId "14322072"]
[WhiteElo "2189"]
[BlackElo "1972"]
[Result "1-0"]
[Round "06"]
[TimeControl "180+2"]
[Date "2023.04.18"]
[WhiteClock "0:00:06"]
[BlackClock "0:01:37"]

1. e4 {[%clk 0:02:52]}  c5 {[%clk 0:02:52]} 2. Nf3 {[%clk 0:02:50]}  a6 {[%clk 0:02:45]} 3. c3 {[%clk 0:02:42]}  e6 {[%clk 0:02:46]} 4. d4 {[%clk 0:02:41]}  d5 {[%clk 0:02:46]} 5. e5 {[%clk 0:02:40]}  Nc6 {[%clk 0:02:46]} 6. Be2 {[%clk 0:02:32]}  Nge7 {[%clk 0:02:41]} 7. h4 {[%clk 0:01:56]}  Nf5 {[%clk 0:02:41]} 8. g4 {[%clk 0:01:42]}  Nh6 {[%clk 0:02:35]} 9. Rg1 {[%clk 0:01:18]}  Be7 {[%clk 0:02:32]} 10. h5 {[%clk 0:01:15]}  f6 {[%clk 0:02:29]} 11. exf6 {[%clk 0:01:11]}  gxf6 {[%clk 0:02:29]} 12. Bxh6 {[%clk 0:01:10]}  cxd4 {[%clk 0:02:27]} 13. cxd4 {[%clk 0:01:07]}  Qb6 {[%clk 0:02:28]} 14. Qd2 {[%clk 0:01:02]}  Bd7 {[%clk 0:02:27]} 15. Nc3 {[%clk 0:01:01]}  Nb4 {[%clk 0:02:24]} 16. a3 {[%clk 0:00:58]}  Nc6 {[%clk 0:02:24]} 17. b4 {[%clk 0:00:49]}  Rg8 {[%clk 0:02:24]} 18. Na4 {[%clk 0:00:45]}  Qd8 {[%clk 0:02:09]} 19. Nc5 {[%clk 0:00:44]}  b6 {[%clk 0:02:08]} 20. Nxd7 {[%clk 0:00:40]}  Qxd7 {[%clk 0:02:09]} 21. Rc1 {[%clk 0:00:38]}  Rc8 {[%clk 0:02:08]} 22. Bxa6 {[%clk 0:00:36]}  Rc7 {[%clk 0:02:08]} 23. Bb5 {[%clk 0:00:35]}  Kf7 {[%clk 0:02:04]} 24. Qf4 {[%clk 0:00:29]}  Bd6 {[%clk 0:01:59]} 25. Qe3 {[%clk 0:00:17]}  Qe7 {[%clk 0:01:57]} 26. Rxc6 {[%clk 0:00:15]}  Rgc8 {[%clk 0:01:57]} 27. Rxc7 {[%clk 0:00:14]}  Rxc7 {[%clk 0:01:58]} 28. Kf1 {[%clk 0:00:13]}  Ra7 {[%clk 0:01:58]} 29. Kg2 {[%clk 0:00:12]}  Kg8 {[%clk 0:01:57]} 30. Nd2 {[%clk 0:00:11]}  Bb8 {[%clk 0:01:57]} 31. g5 {[%clk 0:00:10]}  Qd6 {[%clk 0:01:56]} 32. gxf6 {[%clk 0:00:08]}  Rf7 {[%clk 0:01:46]} 33. Qg3+ {[%clk 0:00:06]}  Kh8 {[%clk 0:01:47]} 34. Qxd6 {[%clk 0:00:06]}  Bxd6 {[%clk 0:01:48]} 35. Bg7+ {[%clk 0:00:06]}  Kg8 {[%clk 0:01:48]} 36. h6 {[%clk 0:00:06]}  Bf8 {[%clk 0:01:49]} 37. Nf3 {[%clk 0:00:06]}  Bxg7 {[%clk 0:01:49]} 38. fxg7 {[%clk 0:00:06]}  Rf6 {[%clk 0:01:49]} 39. Ne5 {[%clk 0:00:05]}  Rf5 {[%clk 0:01:49]} 40. Kf1 {[%clk 0:00:05]}  Rf6 {[%clk 0:01:50]} 41. Bd7 {[%clk 0:00:05]}  b5 {[%clk 0:01:46]} 42. Bxe6+ {[%clk 0:00:05]}  Rxe6 {[%clk 0:01:46]} 43. f4 {[%clk 0:00:05]}  Rf6 {[%clk 0:01:46]} 44. Rg4 {[%clk 0:00:05]}  Rf5 {[%clk 0:01:46]} 45. Ke2 {[%clk 0:00:04]}  Rf6 {[%clk 0:01:47]} 46. Ke3 {[%clk 0:00:04]}  Rxh6 {[%clk 0:01:48]} 47. f5 {[%clk 0:00:04]}  Rf6 {[%clk 0:01:48]} 48. Kf4 {[%clk 0:00:03]}  h5 {[%clk 0:01:48]} 49. Rg5 {[%clk 0:00:03]}  h4 {[%clk 0:01:48]} 50. Nc6 {[%clk 0:00:03]}  Rxc6 {[%clk 0:01:45]} 51. Ke5 {[%clk 0:00:03]}  Rc7 {[%clk 0:01:44]} 52. f6 {[%clk 0:00:03]}  Rc8 {[%clk 0:01:43]} 53. Rh5 {[%clk 0:00:04]}  Kf7 {[%clk 0:01:43]} 54. Rxh4 {[%clk 0:00:04]}  Re8+ {[%clk 0:01:43]} 55. Kf5 {[%clk 0:00:04]}  Rd8 {[%clk 0:01:44]} 56. Rh8 {[%clk 0:00:04]}  Rg8 {[%clk 0:01:42]} 57. Rxg8 {[%clk 0:00:04]}  Kxg8 {[%clk 0:01:36]} 58. Ke6 {[%clk 0:00:04]}  Kh7 {[%clk 0:01:36]} 59. Kf7 {[%clk 0:00:05]}  Kh6 {[%clk 0:01:37]} 60. g8=Q {[%clk 0:00:05]}  Kh5 {[%clk 0:01:37]} 61. Qg3 {[%clk 0:00:05]}  Kh6 {[%clk 0:01:37]} 62. Qh4# {[%clk 0:00:06]} 1-0


[Site "https://www.chess.com"]

[Event "Titled Tuesday Blitz April 18 Late 2023"]
[White "Fuzesabonyilaci"]
[Black "karpovian123"]
[WhiteElo "2325"]
[BlackElo "2437"]
[Result "0-1"]
[Round "06"]
[TimeControl "180+2"]
[Date "2023.04.18"]
[WhiteClock "0:00:10"]
[BlackClock "0:01:24"]

1. e4 {[%clk 0:03:00]}  c6 {[%clk 0:02:55]} 2. d4 {[%clk 0:03:00]}  d5 {[%clk 0:02:56]} 3. Nc3 {[%clk 0:03:00]}  dxe4 {[%clk 0:02:55]} 4. Nxe4 {[%clk 0:03:01]}  Nf6 {[%clk 0:02:55]} 5. Nxf6+ {[%clk 0:02:58]}  exf6 {[%clk 0:02:56]} 6. Bf4 {[%clk 0:02:58]}  Bd6 {[%clk 0:02:47]} 7. Qd2 {[%clk 0:02:58]}  O-O {[%clk 0:02:46]} 8. Bd3 {[%clk 0:02:46]}  Re8+ {[%clk 0:02:45]} 9. Ne2 {[%clk 0:02:46]}  a5 {[%clk 0:02:24]} 10. O-O {[%clk 0:02:45]}  Na6 {[%clk 0:02:24]} 11. a3 {[%clk 0:02:36]}  Nc7 {[%clk 0:02:22]} 12. c4 {[%clk 0:02:32]}  Bg4 {[%clk 0:02:19]} 13. f3 {[%clk 0:02:02]}  Bh5 {[%clk 0:02:19]} 14. Ng3 {[%clk 0:01:01]}  Bg6 {[%clk 0:02:13]} 15. Bxd6 {[%clk 0:00:51]}  Qxd6 {[%clk 0:02:12]} 16. Bxg6 {[%clk 0:00:48]}  hxg6 {[%clk 0:02:11]} 17. Ne4 {[%clk 0:00:49]}  Qd7 {[%clk 0:02:08]} 18. Rfd1 {[%clk 0:00:36]}  Rad8 {[%clk 0:02:03]} 19. Rac1 {[%clk 0:00:29]}  b6 {[%clk 0:01:56]} 20. c5 {[%clk 0:00:27]}  f5 {[%clk 0:01:55]} 21. Nd6 {[%clk 0:00:27]}  Re6 {[%clk 0:01:55]} 22. cxb6 {[%clk 0:00:24]}  Rxd6 {[%clk 0:01:54]} 23. bxc7 {[%clk 0:00:24]}  Qxc7 {[%clk 0:01:53]} 24. Rc5 {[%clk 0:00:22]}  Rxd4 {[%clk 0:01:47]} 25. Qxd4 {[%clk 0:00:22]}  Rxd4 {[%clk 0:01:47]} 26. Rxd4 {[%clk 0:00:23]}  Qb6 {[%clk 0:01:47]} 27. Rdc4 {[%clk 0:00:23]}  Qxb2 {[%clk 0:01:47]} 28. h4 {[%clk 0:00:22]}  Qe2 {[%clk 0:01:45]} 29. Rxc6 {[%clk 0:00:20]}  Qe1+ {[%clk 0:01:44]} 30. Kh2 {[%clk 0:00:20]}  Qe5+ {[%clk 0:01:42]} 31. Kh3 {[%clk 0:00:19]}  f4 {[%clk 0:01:37]} 32. R6c5 {[%clk 0:00:18]}  Qe6+ {[%clk 0:01:36]} 33. Kh2 {[%clk 0:00:18]}  Qf6 {[%clk 0:01:37]} 34. Kh3 {[%clk 0:00:15]}  Kh7 {[%clk 0:01:31]} 35. Rxa5 {[%clk 0:00:13]}  Qe6+ {[%clk 0:01:31]} 36. Kh2 {[%clk 0:00:13]}  Qxc4 {[%clk 0:01:32]} 37. Ra8 {[%clk 0:00:12]}  Qf1 {[%clk 0:01:31]} 38. a4 {[%clk 0:00:12]}  Qf2 {[%clk 0:01:31]} 39. a5 {[%clk 0:00:12]}  Qxh4+ {[%clk 0:01:31]} 40. Kg1 {[%clk 0:00:12]}  Qe1+ {[%clk 0:01:30]} 41. Kh2 {[%clk 0:00:12]}  g5 {[%clk 0:01:30]} 42. a6 {[%clk 0:00:12]}  f5 {[%clk 0:01:28]} 43. a7 {[%clk 0:00:12]}  Qa1 {[%clk 0:01:28]} 44. g3 {[%clk 0:00:10]}  fxg3+ {[%clk 0:01:27]} 45. Kxg3 {[%clk 0:00:10]}  Kg6 {[%clk 0:01:24]} 46. f4 {[%clk 0:00:09]}  g4 {[%clk 0:01:23]} 47. Kf2 {[%clk 0:00:09]}  Qb2+ {[%clk 0:01:22]} 48. Ke3 {[%clk 0:00:10]}  Qc3+ {[%clk 0:01:22]} 49. Ke2 {[%clk 0:00:10]}  Qc2+ {[%clk 0:01:23]} 50. Ke3 {[%clk 0:00:11]}  Qe4+ {[%clk 0:01:23]} 51. Kf2 {[%clk 0:00:10]}  Qxa8 {[%clk 0:01:24]} 52. Kg3 {[%clk 0:00:09]}  Qxa7 {[%clk 0:01:25]} 53. Kh4 {[%clk 0:00:10]}  Qf2# {[%clk 0:01:24]} 0-1


[Site "https://www.chess.com"]

[Event "Titled Tuesday Blitz April 18 Late 2023"]
[White "Rose, Felix"]
[Black "Manfroi, Alexander Giannini"]
[WhiteFideId "5105722"]
[BlackFideId "22739335"]
[WhiteElo "2039"]
[BlackElo "1618"]
[Result "1-0"]
[Round "06"]
[TimeControl "180+2"]
[Date "2023.04.18"]
[WhiteClock "0:01:06"]
[BlackClock "0:00:09"]

1. e4 {[%clk 0:03:00]}  c5 {[%clk 0:03:00]} 2. Nf3 {[%clk 0:03:00]}  Nc6 {[%clk 0:03:01]} 3. d4 {[%clk 0:03:01]}  cxd4 {[%clk 0:03:02]} 4. Nxd4 {[%clk 0:03:02]}  e5 {[%clk 0:03:03]} 5. Nb5 {[%clk 0:03:02]}  a6 {[%clk 0:03:03]} 6. Nd6+ {[%clk 0:03:02]}  Bxd6 {[%clk 0:03:04]} 7. Qxd6 {[%clk 0:03:03]}  Qf6 {[%clk 0:03:05]} 8. Qxf6 {[%clk 0:02:56]}  Nxf6 {[%clk 0:03:06]} 9. Nc3 {[%clk 0:02:55]}  Nb4 {[%clk 0:03:00]} 10. Bd3 {[%clk 0:02:53]}  Nxd3+ {[%clk 0:03:00]} 11. cxd3 {[%clk 0:02:53]}  O-O {[%clk 0:02:57]} 12. f4 {[%clk 0:02:52]}  d6 {[%clk 0:02:55]} 13. O-O {[%clk 0:02:52]}  b5 {[%clk 0:02:54]} 14. f5 {[%clk 0:02:44]}  Bb7 {[%clk 0:02:53]} 15. Bg5 {[%clk 0:02:44]}  Rfd8 {[%clk 0:02:38]} 16. Bxf6 {[%clk 0:02:43]}  gxf6 {[%clk 0:02:39]} 17. Kf2 {[%clk 0:02:36]}  Rac8 {[%clk 0:02:36]} 18. Rfc1 {[%clk 0:02:36]}  Kf8 {[%clk 0:02:28]} 19. b4 {[%clk 0:02:33]}  Ke7 {[%clk 0:02:26]} 20. a4 {[%clk 0:02:32]}  Bc6 {[%clk 0:02:12]} 21. axb5 {[%clk 0:02:29]}  Bxb5 {[%clk 0:02:10]} 22. Nd5+ {[%clk 0:02:22]}  Kf8 {[%clk 0:02:09]} 23. Ke3 {[%clk 0:02:11]}  Kg7 {[%clk 0:02:00]} 24. h4 {[%clk 0:01:46]}  Bc6 {[%clk 0:01:20]} 25. Ne7 {[%clk 0:01:40]}  Bb7 {[%clk 0:01:02]} 26. Nxc8 {[%clk 0:01:40]}  Bxc8 {[%clk 0:00:59]} 27. Rc7 {[%clk 0:01:39]}  d5 {[%clk 0:00:55]} 28. Rac1 {[%clk 0:01:36]}  Bd7 {[%clk 0:00:50]} 29. Ra7 {[%clk 0:01:28]}  Bb5 {[%clk 0:00:43]} 30. Rcc7 {[%clk 0:01:27]}  d4+ {[%clk 0:00:13]} 31. Kd2 {[%clk 0:01:26]}  Kh6 {[%clk 0:00:13]} 32. Rxf7 {[%clk 0:01:24]}  Kh5 {[%clk 0:00:14]} 33. Rxh7+ {[%clk 0:01:23]}  Kg4 {[%clk 0:00:14]} 34. Ke2 {[%clk 0:01:20]}  Kf4 {[%clk 0:00:14]} 35. Rag7 {[%clk 0:01:18]}  Bxd3+ {[%clk 0:00:04]} 36. Kxd3 {[%clk 0:01:18]}  Rc8 {[%clk 0:00:02]} 37. Rc7 {[%clk 0:01:16]}  Rb8 {[%clk 0:00:02]} 38. Rc4 {[%clk 0:01:12]}  Rg8 {[%clk 0:00:01]} 39. Rc6 {[%clk 0:01:08]}  Rg3+ {[%clk 0:00:02]} 40. Kc4 {[%clk 0:01:07]}  Kxe4 {[%clk 0:00:03]} 41. b5 {[%clk 0:01:05]}  Rc3+ {[%clk 0:00:04]} 42. Kb4 {[%clk 0:01:04]}  axb5 {[%clk 0:00:05]} 43. Rxc3 {[%clk 0:01:04]}  dxc3 {[%clk 0:00:05]} 44. Kxc3 {[%clk 0:01:04]}  Kxf5 {[%clk 0:00:06]} 45. h5 {[%clk 0:01:04]}  Kg5 {[%clk 0:00:06]} 46. Rh8 {[%clk 0:01:05]}  f5 {[%clk 0:00:06]} 47. h6 {[%clk 0:01:05]}  Kg6 {[%clk 0:00:07]} 48. Re8 {[%clk 0:01:05]}  e4 {[%clk 0:00:07]} 49. Re5 {[%clk 0:01:05]}  Kf7 {[%clk 0:00:08]} 50. Rxf5+ {[%clk 0:01:05]}  Kg6 {[%clk 0:00:09]} 51. h7 {[%clk 0:01:06]}  e3 {[%clk 0:00:09]} 52. h8=Q {[%clk 0:01:06]} 1-0


[Site "https://www.chess.com"]